Cogmind - Beta 15 @@@ ROGUE MODE // 2025.10.02 @ 20:05:10 Player: souux Result: Destroyed by L-41 Fighter with Axe Performance ------------- Evolutions (4) 2000 Regions Visited (6) 1200 Robots Destroyed (149) 745 Value Destroyed (5188) 5188 Prototype IDs (4) 80 Alien Tech Used (0) 0 Bonus (569) 569 TOTAL SCORE: 9782 Bonus ------- High Alert Combat Kills 333 Follower Combat Kills 236 Cogmind --------- Core Integrity 0/850 Matter 182/300 Energy 100/100 System Corruption 5% Temperature Cool (0) Movement Core (1350) Ox26 Location -6/Factory Parts ------- > --- POWER (1) -------- (None) > --- PROPULSION (4) --- (None) > --- UTILITY (6) ------ Huge Storage Unit Machine Analyzer Advanced Targeting Computer > --- WEAPON (4) ------- (None) > --- INVENTORY (25) --- Improved Heat Sink Improved Cooling System Energy Well (350) Matter Compressor (198) Advanced Sensor Array Recoil Stabilizer Improved Hacking Suite Compact Ion Cannon Scatter Rocket Array Plasma Cutter Peak State ------------ > --- POWER ------------ Improved Deuterium Engine > --- PROPULSION ------- Compact Wheel Compact Wheel Compact Wheel Armored Wheel > --- UTILITY ---------- Huge Storage Unit Machine Analyzer Advanced Targeting Computer Improved Heavy Armor Plating Medium Insulated Plating > --- WEAPON ----------- Thermic Laser Heavy Assault Rifle Heavy Assault Rifle Heavy Machine Gun > --- INVENTORY -------- Deuterium Engine Deuterium Engine Angular Momentum Engine Compact Wheel Improved Heat Sink Improved Cooling System Energy Well Matter Compressor Structural Scanner Advanced Sensor Array Improved Terrain Scanner Recoil Stabilizer Hardened Medium Armor Plating Hardened Medium Armor Plating Reflective Plating Improved Hacking Suite High-powered Tractor Beam Drone Bay Compact Ion Cannon Scatter Rocket Array Plasma Cutter Katana [Rating: 52] Favorites ----------- Power Nuclear Core Engine Improved Deuterium Engine Power Core Nuclear Core Propulsion Compact Wheel Leg Aluminum Leg Wheel Compact Wheel Utility Huge Storage Unit Device Improved Heat Sink Storage Huge Storage Unit Processor Advanced Targeting Computer Protection Light Armor Plating Weapon Autogun Energy Gun Particle Gun Energy Cannon Compact Ion Cannon Ballistic Gun Autogun Launcher Missile Launcher Special Weapon Plasma Cutter Impact Weapon Hammer Slashing Weapon Katana Build | -11 -10 -9 -8 -8 -8 -6 ------- Run | Yrd Mat Mat Mat Sto Rec Fac Slots Evolved 8 | . . 2 2 . . 4 Power . | . . . . . . . Propulsion 2 | . . . 1 . . 1 Utility 4 | . . 1 . . . 3 Weapon 2 | . . 1 1 . . . Parts Attached 127 | 7 12 23 22 21 4 38 Power 15 | 1 4 2 2 2 . 4 Engine 10 | 1 4 1 . . . 4 Core 5 | . . 1 2 2 . . Reactor . | . . . . . . . Propulsion 28 | 3 2 3 4 4 3 9 Treads . | . . . . . . . Leg 1 | 1 . . . . . . Wheel 27 | 2 2 3 4 4 3 9 Hover . | . . . . . . . Flight . | . . . . . . . Utility 40 | 1 2 7 6 4 1 19 Device 18 | . 1 3 3 2 . 9 Storage 5 | 1 1 2 . . . 1 Processor 2 | . . . . . . 2 Hackware . | . . . . . . . Protection 15 | . . 2 3 2 1 7 Artifact . | . . . . . . . Weapon 44 | 2 4 11 10 11 . 6 Energy Gun 9 | 1 . 5 1 . . 2 Energy Cannon 2 | . . . 1 1 . . Ballistic Gun 28 | 1 3 5 8 7 . 4 Ballistic Cannon . | . . . . . . . Launcher 2 | . . . . 2 . . Special Weapon 1 | . . . . 1 . . Impact Weapon 1 | . 1 . . . . . Slashing Weapon 1 | . . 1 . . . . Piercing Weapon . | . . . . . . . Special Melee Weapon . | . . . . . . . Unidentified Prototypes 4 | . . . 1 3 . . Parts Lost 62 | . . 6 10 7 . 39 Power 7 | . . . . 2 . 5 Propulsion 19 | . . 4 3 2 . 10 Utility 16 | . . 2 2 1 . 11 Weapon 20 | . . . 5 2 . 13 Highest Loss Streak 16 | . . 3 4 2 . 16 To Critical Strikes 1 | . . . . . . 1 Average Backups 20 | 5 12 16 23 24 24 22 Power 2 | 1 1 2 2 2 2 3 Propulsion 2 | 2 4 2 1 2 1 1 Utility 8 | . 1 4 9 11 12 10 Weapon 6 | 1 4 5 8 7 8 6 Tool/Special . | . . . . . . . Unused Backups 40 | . 6 9 8 5 3 9 Power 5 | . . 4 1 . . . Propulsion 14 | . 4 1 1 4 1 3 Utility 12 | . 1 1 3 . 1 6 Weapon 9 | . 1 3 3 1 1 . Tool/Special . | . . . . . . . Average Slot Usage (%) 98 | . 98 99 99 99 100 96 Engine 3 | . 14 6 . . . 3 Core 5 | . . 4 9 9 9 2 Wheel 25 | . 28 21 26 26 27 24 Device 12 | . 12 17 9 8 9 17 Storage 9 | . 14 11 9 9 9 6 Processor 1 | . . . . . . 7 Protection 6 | . . 4 8 9 9 6 Energy Gun 2 | . 1 12 . . . 1 Ballistic Gun 28 | . 26 19 35 33 36 22 Peak Build Rating 52 | 6 8 22 28 32 30 52 Average Rating 24 | 4 7 14 25 27 29 40 On Entrance 17 | . 6 8 22 28 30 29 Naked Turns . | . . . . . . . Heaviest Build 126 | 11 49 104 108 111 103 126 Greatest Support 64 | 32 32 32 48 48 48 64 Greatest Overweight (x) 32 | . 1 3 3 3 2 32 Average Overweight (x) 1 | . . 1 2 2 2 1 Largest Inventory Capacity 25 | 8 20 25 25 25 25 25 Average Capacity 23 | 7 17 20 25 25 25 25 Most Carried 25 | 7 16 25 25 25 25 25 Average Carried 20 | 5 12 16 23 24 24 22 Final Capacity 25 | 8 20 25 25 25 25 25 Final Carried 25 | 6 15 25 25 25 25 10 Class Distribution -------------------- 29% | Tank 25% | Scavenger-Tank 18% | Scavenger-Skirmisher 16% | Mutant 5% | Skirmisher 4% | Commander-Tank Dominant Class ---------------- Mutant | -10/Materials Tank | -9/Materials Tank | -8/Materials Scavenger-Tank | -8/Storage Scavenger-Tank | -8/Recycling Scavenger-Skirmisher | -6/Factory Resources | -11 -10 -9 -8 -8 -8 -6 ----------- Run | Yrd Mat Mat Mat Sto Rec Fac Matter Collected 6275 | 271 550 360 2154 1216 266 1458 Remotely 29 | . . . . . . 29 Salvage Created 6718 | 85 397 554 2030 1498 702 1452 Parts 359 | 1 41 38 121 74 24 60 Haulers Intercepted . | . . . . . . . Recyclers Shooed 3 | . . . 2 . . 1 Parts Field Recycled . | . . . . . . . Retrieved Matter . | . . . . . . . Parts Self-Destructed . | . . . . . . . Prevented . | . . . . . . . Kills | -11 -10 -9 -8 -8 -8 -6 ------- Run | Yrd Mat Mat Mat Sto Rec Fac Combat Hostiles Destroyed 125 | . 17 13 43 27 6 19 Guns 122 | . 17 13 43 24 6 19 AOE 3 | . . . . 3 . . Classes Destroyed 13 | 1 2 3 5 . . 2 Worker 3 | . . . 1 . . 2 Builder 3 | . . . 1 2 . . Tunneler 1 | . . . . . . 1 Recycler 14 | 1 . . 1 2 6 4 Operator 1 | . . 1 . . . . Watcher 2 | . . . 1 1 . . Swarmer 28 | . 12 . 9 3 . 4 Grunt 55 | . 5 10 22 13 1 4 Brawler 3 | . . . 2 . . 1 Duelist 1 | . . 1 . . . . Sentry 29 | . . 2 9 10 4 4 Hunter 5 | . . . 1 1 1 2 Programmer 4 | . . . . . . 4 Best Kill Streak 6 | 1 6 3 5 6 3 6 Combat Bots Only 6 | . 6 3 5 5 3 6 Max Kills in Single Turn 2 | 1 1 1 2 2 1 2 Gunslinging 1 | . . . . 1 . 1 Exploded 1 | . . . . 1 . . Melee . | . . . . . . . Uniques/NPCs Destroyed . | . . . . . . . Combat | -11 -10 -9 -8 -8 -8 -6 -------- Run | Yrd Mat Mat Mat Sto Rec Fac Hostile Shots Fired 864 | . 65 56 141 93 6 503 Missed 227 | . 17 21 20 28 3 138 Hits 637 | . 48 35 121 65 3 365 Melee 17 | . . 3 2 . . 12 Projectile 620 | . 48 32 119 65 3 353 Critical Strikes 16 | . . . 4 4 . 8 Damage Taken 9605 | . 437 542 1841 1049 44 5692 Core 1451 | . 175 70 276 61 . 869 Absorbed by Shields . | . . . . . . . Ignored by Resistances 63 | . . . . . . 63 Core Remaining (%) 62 | 100 30 82 . . 38 . Volleys Fired 333 | 4 42 35 103 59 14 76 Largest 4 | 2 2 3 4 4 4 4 Hottest 161 | 60 60 144 92 94 92 161 Shots Fired 1139 | 8 83 104 400 221 58 265 Gun 1126 | 8 83 104 399 217 58 257 Cannon 9 | . . . 1 . . 8 Launcher 4 | . . . . 4 . . Special . | . . . . . . . Kinetic 1059 | 4 73 65 399 217 58 243 Thermal 67 | 4 10 39 1 . . 13 Explosive 4 | . . . . 4 . . Electromagnetic 9 | . . . . . . 9 Robot Hit Streak 22 | 5 10 15 9 13 22 18 Robot Miss Streak 8 | 2 4 5 8 4 1 5 Penetration Max . | . . . . . . . Secondary Targets 22 | . 3 3 4 4 1 7 Max Gunslinging Chain 1 | . 1 1 1 1 1 1 Shots Hit Robots 681 | 5 47 79 215 130 30 175 Core Hits 310 | 2 25 28 94 64 16 81 Critical Kills 3 | . . . 2 1 . . Critical Parts Destroyed 5 | 1 . . 2 . 1 1 Critical Strikes 15 | 1 . 6 4 1 1 2 Burn 5 | . . 5 . . . . Destroy 9 | 1 . 1 4 1 1 1 Corrupt 1 | . . . . . . 1 Melee Attacks 16 | . 1 2 1 . . 12 Impact 1 | . 1 . . . . . Slashing 15 | . . 2 1 . . 12 Piercing . | . . . . . . . Sneak Attacks . | . . . . . . . Combat Hostiles . | . . . . . . . Follow-up Attacks . | . . . . . . . Damage Inflicted 10774 | 55 465 882 3357 2357 439 3219 Guns 10526 | 55 465 882 3357 2109 439 3219 Cannons . | . . . . . . . Explosions 248 | . . . . 248 . . Melee . | . . . . . . . Ramming . | . . . . . . . Kinetic 9753 | 22 401 460 3357 2109 439 2965 Thermal 603 | 33 64 422 . . . 84 Explosive 248 | . . . . 248 . . Electromagnetic 170 | . . . . . . 170 Impact . | . . . . . . . Slashing . | . . . . . . . Piercing . | . . . . . . . Highest Corruption 5 | . . 1 3 4 4 5 Average Corruption 2 | . . 1 3 3 4 1 Corruption Purged . | . . . . . . . Corruption Blocked . | . . . . . . . Effects 80 | . . 1 11 35 21 12 Message Errors 21 | . . 1 4 7 7 2 Matter Fused 19 | . . . 2 9 4 4 Heat Flow Errors 8 | . . . 1 2 3 2 Energy Discharges 7 | . . . . 6 . 1 Parts Fused 2 | . . . . 1 1 . Data Loss (minor) 10 | . . . 2 4 3 1 Data Loss (major) 2 | . . . . . 1 1 Misfires 6 | . . . 1 3 2 . Alerts 2 | . . . 1 1 . . Weapon Failures 3 | . . . . 2 . 1 Overload Shots . | . . . . . . . Overflow Damage 43 | . . . . 43 . . Projectiles . | . . . . . . . Explosions 43 | . . . . 43 . . Melee . | . . . . . . . Knockbacks . | . . . . . . . Impact . | . . . . . . . Kinetic . | . . . . . . . Secondary . | . . . . . . . Self-Inflicted Damage . | . . . . . . . Shots . | . . . . . . . Rammed . | . . . . . . . Targets Rammed . | . . . . . . . Kicked . | . . . . . . . Crushed . | . . . . . . . Highest Temperature 587 | . 12 249 587 231 227 516 Average Temperature 118 | . 6 77 162 27 88 107 Received Heat Transfer 2649 | . 72 159 756 486 18 1158 Effects 21 | . . . 19 . . 2 Shutdowns 4 | . . . 3 . . 1 Energy Bleed 3 | . . . 3 . . . Interference 2 | . . . 1 . . 1 Matter Decay 5 | . . . 5 . . . Short Circuit 1 | . . . 1 . . . Damage (minor) 2 | . . . 2 . . . Damage (major) 3 | . . . 3 . . . Damage (core) 1 | . . . 1 . . . Siege Activations . | . . . . . . . Martial Activations . | . . . . . . . Shielding Activations . | . . . . . . . Robots Disrupted . | . . . . . . . Combat Hostiles . | . . . . . . . Robots Corrupted . | . . . . . . . Combat Hostiles . | . . . . . . . Parts Fried 2 | . . . . . . 2 Impact Corruptions . | . . . . . . . Robots Melted . | . . . . . . . Combat Hostiles . | . . . . . . . Parts Melted 3 | . . 2 . . 1 . Heat Transferred 1942 | 75 150 1517 . . . 200 Parts Sabotaged . | . . . . . . . Parts Stolen . | . . . . . . . Parts Stripped . | . . . . . . . Power Chain Reactions . | . . . . . . . Alert | -11 -10 -9 -8 -8 -8 -6 ------- Run | Yrd Mat Mat Mat Sto Rec Fac Maximum Alert Level 3 | . . . 2 3 1 . Low Security (%) 73 | 100 100 100 52 . 70 100 Level 1 12 | . . . 31 20 29 . Level 2 7 | . . . 15 34 . . Level 3 6 | . . . . 45 . . Level 4 . | . . . . . . . Level 5 . | . . . . . . . High Security . | . . . . . . . Max Security . | . . . . . . . Peak Influence 789 | 5 124 76 539 789 314 112 Initial 292 | . 3 16 24 222 292 . Average 159 | 1 41 19 209 608 127 35 Influence Increases 4386 | 5 460 350 1325 1326 205 715 Destroy 0b10 Robot/C 2680 | . 340 260 860 680 140 400 Destroy 0b10 Robot/NC 140 | 5 . 5 20 45 30 35 Destroy Leader 636 | . 60 70 202 194 . 110 Allied During Kill 288 | . . . . 267 13 8 Successful Hack 102 | . 43 11 21 5 22 . Disable Machine 120 | . . . 30 75 . 15 Anti-Garrison Action 150 | . . . 150 . . . Destroy Structure 60 | . 2 4 12 30 . 12 Partial Spotted 15 | . 15 . . . . . Lose Combat Pursuer 195 | . . . 30 30 . 135 Influence Decreases 4386 | . 424 333 854 1105 954 716 Entered New Map 827 | . 2 25 34 307 458 1 Time Decay 2535 | . 422 268 570 518 409 348 Lost Part 537 | . . 40 100 70 . 327 Lost Ally 120 | . . . . 60 20 40 Purge Threat 367 | . . . 150 150 67 . Squads Dispatched 32 | . 2 5 8 6 . 11 Investigation 7 | . 1 1 4 1 . . Extermination 5 | . . . . . . 5 Reinforcement 13 | . 1 4 2 3 . 3 Assault 2 | . . . 2 . . . Garrison 5 | . . . . 2 . 3 Intercept . | . . . . . . . Searches Triggered . | . . . . . . . Construction Impeded 1 | . . . . 1 . . Haulers Reinforced . | . . . . . . . Active Scanning Responses . | . . . . . . . Cargo Convoy Interrupts . | . . . . . . . Stealth | -11 -10 -9 -8 -8 -8 -6 --------- Run | Yrd Mat Mat Mat Sto Rec Fac Distress Signals 10 | . 2 2 2 3 . 1 Communications Jammed . | . . . . . . . Distress Signals . | . . . . . . . Times Spotted 188 | . 29 18 55 37 6 43 Peak Tracking Total 11 | . 6 3 5 5 3 11 Tactical Retreats 9 | . . . 2 2 . 5 Traps | -11 -10 -9 -8 -8 -8 -6 ------- Run | Yrd Mat Mat Mat Sto Rec Fac Traps Triggered 14 | . 1 3 3 4 . 3 Indirectly . | . . . . . . . Trap Hack Attempts . | . . . . . . . Triggered . | . . . . . . . Disarmed . | . . . . . . . Reprogrammed . | . . . . . . . Reused . | . . . . . . . Traps Extracted . | . . . . . . . Installed . | . . . . . . . Triggered . | . . . . . . . Machines | -11 -10 -9 -8 -8 -8 -6 ---------- Run | Yrd Mat Mat Mat Sto Rec Fac Machines Disabled 9 | . . . 3 5 . 1 Max in Single Turn 1 | . . . 1 1 . 1 Garrison Access 2 | . . . 1 1 . . Machines Repaired . | . . . . . . . Machines Dismantled 5 | . . . . 5 . . Machines Sabotaged . | . . . . . . . Overloaded Fab Kills . | . . . . . . . Hacking | -11 -10 -9 -8 -8 -8 -6 --------- Run | Yrd Mat Mat Mat Sto Rec Fac Machines Accessed 38 | . 8 2 9 8 6 5 Terminals 33 | . 8 2 7 6 6 4 Fabricators . | . . . . . . . Repair Stations . | . . . . . . . Recycling Units 2 | . . . 1 1 . . Scanalyzers . | . . . . . . . Garrison Access 3 | . . . 1 1 . 1 Total Hacks 97 | . 25 7 28 13 17 7 Successful 46 | . 16 3 10 8 8 1 Failed 51 | . 9 4 18 5 9 6 Catastrophic 14 | . 2 1 4 3 1 3 Database Lockouts . | . . . . . . . Manual 82 | . 25 7 20 8 17 5 Terminals 90 | . 25 7 25 11 17 5 Fabricators . | . . . . . . . Repair Stations . | . . . . . . . Recycling Units 2 | . . . 1 1 . . Scanalyzers . | . . . . . . . Garrison Access 5 | . . . 2 1 . 2 Terminal Hacks 11 | . 3 1 2 2 3 . Part Schematic 1 | . . . . . 1 . Robot Analysis 1 | . 1 . . . . . Branch Access Points 3 | . . 1 1 . 1 . Emergency Access Points 1 | . 1 . . . . . Unreport Threat 4 | . 1 . 1 1 1 . Locate Traps 1 | . . . . 1 . . Fabricator Hacks . | . . . . . . . Repair Station Hacks . | . . . . . . . Recycling Unit Hacks 2 | . . . 1 1 . . Report Inventory 2 | . . . 1 1 . . Scanalyzer . | . . . . . . . Garrison Access Hacks 1 | . . . . 1 . . Seal Access 1 | . . . . 1 . . Unauthorized Hacks 32 | . 13 2 7 4 5 1 Terminals 32 | . 13 2 7 4 5 1 Botnet 27 | . 8 2 7 4 5 1 Skim 5 | . 5 . . . . . Fabricators . | . . . . . . . Repair Stations . | . . . . . . . Recycling Units . | . . . . . . . Scanalyzers . | . . . . . . . Garrison Access . | . . . . . . . Data Cores Recovered . | . . . . . . . Used . | . . . . . . . Hacking Detections 32 | . 8 2 8 4 6 4 Full Trace Events 7 | . 1 1 4 1 . . Feedback Events 1 | . . . . 1 . . Corruption 1 | . . . . 1 . . Feedback Blocked . | . . . . . . . Robot Schematics Acquired . | . . . . . . . Robots Built . | . . . . . . . Authchips . | . . . . . . . Time . | . . . . . . . Total Robot Build Rating . | . . . . . . . Part Schematics Acquired 1 | . . . . . 1 . Parts Built . | . . . . . . . Authchips . | . . . . . . . Time . | . . . . . . . Total Part Build Rating . | . . . . . . . Parts Repaired . | . . . . . . . Time . | . . . . . . . Parts Recycled . | . . . . . . . Recycled Matter . | . . . . . . . Retrieved Matter . | . . . . . . . Retrieved Components . | . . . . . . . Parts Scanalyzed . | . . . . . . . Part Schematics Acquired . | . . . . . . . Parts Damaged . | . . . . . . . Bothacking | -11 -10 -9 -8 -8 -8 -6 ------------ Run | Yrd Mat Mat Mat Sto Rec Fac Used RIF Installer . | . . . . . . . Robots Hacked . | . . . . . . . Non-combat . | . . . . . . . Combat . | . . . . . . . Robot Hacks Applied . | . . . . . . . Relay Couplers Released 1 | . . . 1 . . . Machine Destruction 1 | . . . 1 . . . Fabnet Peak Effective % . | . . . . . . . Robots Rewired 1 | . . . . . 1 . Allies Hacked . | . . . . . . . Hacks Repelled . | . . . . . . . Allies | -11 -10 -9 -8 -8 -8 -6 -------- Run | Yrd Mat Mat Mat Sto Rec Fac Total Allies 11 | . . . . 10 1 . Largest Group 10 | . . . . 10 2 2 Highest-Rated Group 173 | . . . . 173 37 37 Highest-Rated Ally 29 | . . . . 29 21 21 Total Orders 8 | . . . . . . 8 EXPLORE 4 | . . . . . . 4 RETURN 4 | . . . . . . 4 Ally Attacks 89 | . . . . 71 12 6 Total Damage 1190 | . . . . 864 186 140 Kills 13 | . . . . 11 1 1 Allies Corrupted . | . . . . . . . Allies Melted . | . . . . . . . Intel | -11 -10 -9 -8 -8 -8 -6 ------- Run | Yrd Mat Mat Mat Sto Rec Fac Active Infowar (turns) 6461 | . 1257 1873 1295 . . 2036 Sensors 1783 | . . 1174 . . . 609 IFF 121 | . . . . . . 121 Terrain 2691 | . . 672 1295 . . 724 Structural 1717 | . . . . . . 1717 Seismic 1836 | . 1257 579 . . . . Machine Analysis 323 | . . . . . . 323 Robot Analysis Total 1 | . 1 . . . . . Derelict Logs Recovered . | . . . . . . . Drone Launches 5 | . . . . . . 5 Drone Recoveries 4 | . . . . . . 4 Exploration | -11 -10 -9 -8 -8 -8 -6 ------------- Run | Yrd Mat Mat Mat Sto Rec Fac Turns Passed 9977 | 77 1364 1878 1834 1437 1268 2119 Spaces Moved 5101 | 49 884 833 780 773 783 999 Core 11 | 10 . . . . . 1 Treads . | . . . . . . . Legs . | . . . . . . . Wheels 5090 | 39 884 833 780 773 783 998 Hover . | . . . . . . . Flight . | . . . . . . . Fastest Speed 50 | 50 100 115 126 126 126 110 Average Speed 121 | 89 112 119 129 127 129 117 Slowest Speed 1650 | 100 115 145 145 145 130 1650 Overloaded Moves . | . . . . . . . Propulsion Burnouts . | . . . . . . . Robots Hopped . | . . . . . . . Potential Cave-ins . | . . . . . . . Cave-ins Triggered . | . . . . . . . Exploration Rate (%) 66 | 4 98 69 74 96 96 27 Regions Visited 6 Branch Regions 2 Pre-discovered Areas . | . . . . . . . Known Exits Taken 1 | . . . 1 . . . Unknown Exits Taken 5 | 1 1 1 . 1 1 . Scrap Searched . | . . . . . . . Spaces Dug 35 | . 1 2 1 21 . 10 Terrain Destroyed 51 | . 1 2 1 37 . 10 Melee 14 | . 1 2 1 . . 10 Projectile . | . . . . . . . AOE 37 | . . . . 37 . . Terrain Rammed . | . . . . . . . Walls Destroyed . | . . . . . . . Machines Disabled . | . . . . . . . Actions | -11 -10 -9 -8 -8 -8 -6 --------- Run | Yrd Mat Mat Mat Sto Rec Fac Total 8127 | 73 1181 1656 1428 1028 1004 1757 Wait 2155 | 3 202 692 464 86 153 555 Move 5095 | 48 883 832 779 772 782 999 Hop . | . . . . . . . Pick Up 159 | 11 23 39 29 23 4 30 Fast Attach 16 | 1 1 4 5 4 . 1 Attach 70 | 5 . 8 12 10 . 35 Detach 1 | . . . . 1 . . Swap 103 | 1 12 16 16 20 5 33 Drop 103 | . 17 28 19 15 8 16 Fire 333 | 4 42 35 103 59 14 76 Melee 16 | . 1 2 1 . . 12 Ram . | . . . . . . . Kick . | . . . . . . . Crush . | . . . . . . . Escape Stasis . | . . . . . . . Rewire 39 | . . . . 1 38 . Trap . | . . . . . . . Miscellaneous 37 | . . . . 37 . . Route ------- -11/Scrapyard -10/Materials (discovered 5 exits: *Mat x3 / [*Min] / [*Sub]) -9/Materials (discovered 3 exits: *Mat x2 / *Min) -8/Materials (discovered 3 exits: [*Fac x2] / *Sto) -8/Storage (discovered 2 exits: [*Fac] / *Rec) -8/Recycling -6/Factory History --------- Turn | Location | Event 20 | -11/Scrapyard | Discovered new exit (range 16) 78 | -11/Scrapyard | Entered Materials 305 | -10/Materials | Discovered new exit (range 12) 317 | -10/Materials | Build established: Mutant 376 | -10/Materials | Discovered new exit (range 10) 585 | -10/Materials | Discovered new exit (range 5) 594 | -10/Materials | Core integrity fell below 50% 763 | -10/Materials | Discovered new exit (range 16) 987 | -10/Materials | Discovered new exit (range 9) 1442 | -10/Materials | Entered another Materials area 1442 | -9/Materials | Evolved 2 slots: Utility x1, Weapon x1 1775 | -9/Materials | Build established: Skirmisher 2053 | -9/Materials | Lost 3 parts (2n1u) 2318 | -9/Materials | Build established: Scavenger-Skirmisher 2389 | -9/Materials | Discovered new exit (range 16) 2499 | -9/Materials | Discovered new exit (range 12) 2763 | -9/Materials | Discovered new exit (range 6) 3013 | -9/Materials | Identified exit to Mines 3090 | -9/Materials | Build established: Tank 3320 | -9/Materials | Entered another Materials area 3320 | -8/Materials | Evolved 2 slots: Propulsion x1, Weapon x1 3707 | -8/Materials | Discovered new exit (range 16) 4243 | -8/Materials | Discovered new exit (range 5) 4505 | -8/Materials | Lost 4 parts (2n2w) 5011 | -8/Materials | Discovered new exit (range 11) 5040 | -8/Materials | Core integrity fell below 50% 5114 | -8/Materials | Identified exit to Storage 5154 | -8/Materials | Entered Storage 5555 | -8/Storage | Assisted by bots powering up and referring to "LRC-V3" 5636 | -8/Storage | Garrison activated, responded to threat 5848 | -8/Storage | Build established: Commander-Tank 6038 | -8/Storage | Discovered new exit (range 15) 6231 | -8/Storage | Found Prototype Launcher 6232 | -8/Storage | Identified Scatter Rocket Array 6255 | -8/Storage | Build established: Scavenger-Tank 6287 | -8/Storage | Discovered new exit (range 3) 6591 | -8/Storage | Entered Recycling 6591 | -8/Recycling | Accompanied by 2 allies 7234 | -8/Recycling | Discovered new exit (range 5) 7859 | -8/Recycling | Entered Factory 7859 | -6/Factory | Accompanied by 2 allies 7859 | -6/Factory | Evolved 4 slots: Propulsion x1, Utility x3 8158 | -6/Factory | Build established: Scavenger-Skirmisher 8698 | -6/Factory | Lost 8 parts (1p2n1u4w) 9772 | -6/Factory | Build established: Scavenger-Tank 9855 | -6/Factory | Lost 11 parts (2p2n2u5w) 9966 | -6/Factory | Core integrity fell below 50% 9974 | -6/Factory | Core integrity fell below 20% 9978 | -6/Factory | Destroyed by L-41 Fighter with Axe Last Messages --------------- 09950_ Deuterium Engine destroyed. 09950_ Hrd. Medium Armor Plating destroyed. 09950_ Drone Bay destroyed. 09951_ Acquired Wheel. 09952_ Com. Wheel destroyed. 09952_ IFF Parser destroyed. 09952_ >> Machine Analyzer network decryption results: 09952_ Terminal x2 09955_ R-10 Processor collects Welding Torch. 09956_ Arm. Wheel destroyed. 09958_ Wheel destroyed. 09963_ Slug penetrates L-41 Fighter. 09964_ Acquired 29 matter. 09966_ Penetrated by Slug. 09967_ Imp. Terrain Scanner destroyed. 09967_ Structural Scanner destroyed. 09967_ Angular Momentum Engine destroyed. 09969_ Slug penetrates L-41 Fighter. 09969_ Hpw. Tractor Beam destroyed. 09976_ Katana destroyed. Map ----- +----------------------------------------------------+ | ??????????????????????????######### ####### | | ?????????????????????????## # ################## | | ?????????????????????????# | | ?????????????????????????# | | ?????????????????????????# """"" """""" | | ?????????????????????????# "" F" """""" | | ?????????????????????????# "" "" """""" | | ?????????????????????????### """""" | | ???????????????????????????# | | ???????????????????????????# """""" ### | | ???????????????????????????# """""" ### | | ???????????????????????????# """""" #?? | | ???????????????????????????# """""" ### | | ???????????????????????????# ### | | ????????????????????????#??# | | ???????????????????????????# ############### | | ?????????????????????####### ##????????##### | | ?????????????????????####### # ????????????? | | ?????????????????"""T""" # # ????????????? | | ?????????????????""" """ # # ????????????? | | ????????????????????? # A# ?""""???????? | | ??????????????????""""""" # # ?""""??????## | | ??????????????????""""""" # g # ?""""??????## | | ?????????????? # ?""""""" x#g + """"????"?## | | ?????????????? # """"""" lp # """"??"""?## | | ?????????????? # @g# # """"????G?## | | ?????????????? # # #? """"??"""?## | | ?????????????? # # #?? ???????"?## | | ?????????????? # !!! # #????????????## | | ?????????????? # !! # #????????????## | | ?????????????? # !! # #???????????? | | ??????????????###########Y## #?????????????? | | ??????????????############## ^ #?????????????? | | ???????????????????????##### ^ #?????????????? | | ???????????????????????????# #?????????????? | | ???????????????????????????# #?????????????? | | ???????????????????????????? #?????????????? | | ???????????????????????????? #?????????????? | | ???????????????????????????? ????????????????? | | ???????????????????????????? ??????????????????? | | ?????????????????????????????????????????????????? | | ?????????????????????????????????????????????????? | | ?????????????????????????????????????????????????? | | ?????????????????????????????????????????????????? | | ?????????????????????????????????????????????????? | | ?????????????????????????????????????????????????? | | ?????????????????????????????????????????????????? | | ?????????????????????????????????????????????????? | | ?????????????????????????????????????????????????? | | ????????????????????????????????????????########## | +----------------------------------------------------+ Best States ------------- Heat Dissipation 64 Energy Generation 18 Energy Capacity 300 Matter Stores 300 Matter Capacity 300 Sight Range 16 Robot Scan Range 16 Terrain Scan Range 16 Terrain Scan Density 10 Armor Coverage 825 Resistance: TH 10 Resistance: EM 20 Evasion (%) 50 Targeting Accuracy 8 Recoil Reduction 4 Item Schematics ----------------- Huge Storage Unit | -8/Recycling | Hacked Robot Schematics ------------------ None Fabricated ------------ Nothing Repaired ---------- Nothing Alien Tech Used ----------------- None Achievements -------------- None Challenges ------------ None Game ------ Seed AlphaChainRouter Manual? 0 Play Time 02:09:27 Cumulative 44.8 hours Start 2025.10.02 @ 11:29:57 End 2025.10.02 @ 20:05:10 Sessions 3 Manual Loads 0 Difficulty Rogue Special Mode None Game No. 42 Rogue 42 Adventurer 0 Explorer 0 Win Type - Total 0 Types 0/0/0/0/0/0/0/0/0/0 Lore% 14 Gallery% 29 Achievement% 28 Wizard Run 0 Options --------- Layout 0 ASCII 0 Keyboard 0 Movement Mouse Keybinds 0 Fullscreen 2 Font 18/X11 Map View 76x50 Zoom Use 67% Tactical HUD 1 Map Filters NONE Filters NONE Steam 1 RUN: 35339aa7-caf8-4b4e-bcb7-b0f5f3a7006b